bitfinex-derivatives/quotes_BNBF0:USTF0_20250424
["timestamp","ask_amount","ask_price","bid_price","bid_amount"]
[1745536705717,0.2899553,601.05,599.53,0.30607033]
[1745536707423,0.28944884,605.75,599.16,0.59551948]
[1745536707623,0.28944884,605.75,599.17,0.30607064]
[1745536707824,0.28944884,605.75,599.18,0.30607064]
[1745536708120,0.28944884,605.75,599.19,0.30607064]
[1745536708324,0.28944884,605.75,599.2,0.30607064]
[1745536708524,0.28944884,605.75,599.21,0.30607064]
[1745536708725,0.28944884,605.75,599.16,0.28944884]
[1745536708919,0.28944884,605.75,599.17,0.30607251]
[1745536709121,1.27175545,601.09,599.63,1.06177602]
[1745536709326,1.27175545,601.09,599.64,0.30607251]
[1745536710326,1.27175545,601.09,599.63,1.06177602]
[1745536710625,1.27175545,601.09,599.64,0.30607905]
[1745536711623,1.27175545,601.2,599.64,0.30607905]
[1745536711822,1.27175545,601.2,599.65,0.30607905]
[1745536712127,1.27175545,601.2,599.66,0.30607905]
[1745536712327,1.27175545,601.2,599.56,0.30607905]
[1745536712623,1.27175545,601.2,599.55,1.06177602]
[1745536712624,1.27175545,601.2,599.57,0.30607905]
[1745536712827,1.27175545,601.2,599.56,0.30607905]
[1745536713430,0.28995651,601.19,599.56,0.30607905]
[1745536715228,0.28995651,601.19,599.55,1.06177602]
[1745536715431,1.56171196,601.19,599.56,0.30606833]
[1745536715727,1.56171196,601.19,599.57,0.30606833]
[1745536715927,1.56171196,601.19,599.58,0.30606833]
[1745536716128,1.56171196,601.19,599.51,0.30606833]
[1745536716325,1.56171196,601.19,599.52,0.30606833]
[1745536716529,1.56171196,601.19,599.51,0.30606833]
[1745536716731,1.56171196,601.19,599.52,0.30606833]
[1745536716932,1.56171196,601.19,599.51,0.30606833]
[1745536717133,1.56171196,601.19,599.52,0.30606833]
[1745536717331,1.56171196,601.19,599.51,0.30606833]
[1745536717633,1.56171196,601.19,599.52,0.30606833]
[1745536717825,1.56171196,601.19,599.51,0.30606833]
[1745536718232,1.27175545,601.19,599.51,0.30606833]
[1745536718430,1.27175545,601.19,599.5,1.06177602]
[1745536718627,1.27175545,601.19,599.51,1.41607632]
[1745536718831,1.27175545,601.29,599.52,0.30607632]
[1745536719434,0.28995047,601.28,599.52,0.30607632]
[1745536720035,0.28995047,601.28,599.51,1.11]
[1745536720534,0.28995047,601.28,599.52,0.30607791]
[1745536721237,1.27175545,601.29,599.52,0.30607791]
[1745536721434,0.28995047,601.27,599.52,0.30607791]
[1745536723239,0.28995047,601.27,599.51,1.11]
[1745536723438,0.28995047,601.27,599.52,0.306073]
[1745536724339,1.27175545,601.52,599.52,0.306073]
[1745536724535,0.28992269,601.26,599.52,0.306073]
[1745536724740,1.27175545,601.52,599.51,1.11]
[1745536725435,0.28992269,601.51,599.51,1.11]
[1745536725640,0.28992269,601.51,599.52,0.30607806]
[1745536725833,0.28992269,601.51,599.51,1.11]
[1745536727243,1.27175545,601.58,599.51,1.11]
[1745536728140,1.27175545,601.58,599.52,0.30607858]
[1745536728341,1.27175545,601.6,599.52,0.30607858]
[1745536728541,0.28991544,601.57,599.52,0.30607858]
[1745536729442,0.28991544,601.57,599.52,1.45707858]
[1745536729642,0.28991544,601.57,599.53,0.30607858]
[1745536729842,0.28991544,601.57,599.54,0.30607009]
[1745536730035,0.28991544,601.57,599.53,0.30607009]
[1745536730235,1.27175545,601.6,599.54,0.30607009]
[1745536730439,1.27175545,601.6,599.53,0.30607009]
[1745536730636,1.27175545,601.6,599.54,1.378]
[1745536730842,1.27175545,601.39,599.55,0.30607009]
[1745536731442,0.28993476,601.38,599.55,0.30607009]
[1745536733044,0.28993476,601.38,599.54,1.378]
[1745536733244,1.27175545,601.39,599.55,0.3060706]
[1745536734445,0.28993476,601.38,599.55,0.3060706]
[1745536734648,0.28993476,601.38,599.54,1.378]
[1745536734839,0.28993476,601.38,599.55,0.30606533]
[1745536736346,1.27175545,601.4,599.55,0.30606533]
[1745536737147,1.27175545,601.52,599.55,0.30606533]
[1745536737550,0.28993356,601.39,599.55,0.30606533]
[1745536737846,1.27175545,601.52,599.54,1.378]
[1745536739045,1.27175545,601.52,599.54,2.55]
[1745536739446,0.28991906,601.51,599.54,2.55]
[1745536741848,0.28991906,601.51,599.48,0.28990457]
[1745536742048,0.28991906,601.51,599.49,0.30606897]
[1745536742248,1.27175545,601.64,599.49,0.30606897]
[1745536742449,1.27175545,601.64,599.36,0.30606897]
[1745536742649,1.27175545,601.64,599.37,0.30606897]
[1745536742843,1.27175545,601.64,599.36,0.30606897]
[1745536743147,1.27175545,601.64,599.37,0.30606897]
[1745536743451,0.28992752,601.63,599.38,0.30606897]
[1745536743748,0.28992752,601.63,599.37,0.28992752]
[1745536743948,0.28992752,601.63,599.38,0.30606332]
[1745536745251,1.27175545,601.64,599.38,0.30606332]
[1745536745452,0.2899251,601.62,599.37,0.2899251]
[1745536745646,0.2899251,601.62,599.38,0.30606332]
[1745536746653,1.27175545,601.56,599.4,1.06177602]
[1745536746951,1.27175545,601.56,599.4,2.41177602]
[1745536747251,1.27175545,601.56,599.41,0.30606319]
[1745536747650,1.27175545,601.56,599.41,1.67106319]
[1745536747848,1.27175545,601.56,599.42,0.30606319]
[1745536748548,1.27175545,601.56,599.41,4.016]
[1745536748751,1.27175545,601.56,599.42,0.30606332]
[1745536749452,0.28992993,601.55,599.42,0.30606332]
[1745536751253,1.27175545,601.63,599.42,0.30606332]
[1745536751553,1.27175545,601.43,599.47,1.06177602]
[1745536751753,1.27175545,601.43,599.48,0.30606332]
[1745536752454,0.28993839,601.42,599.48,0.30606332]
[1745536753455,0.28993839,601.42,599.47,1.06177602]
[1745536753651,0.28993839,601.42,599.48,0.30606396]
[1745536754255,1.27175545,601.43,599.48,0.30606396]
[1745536754457,1.27175545,601.4,599.48,0.30606396]
[1745536754657,1.27175545,601.4,599.49,0.30606396]
[1745536754850,1.27175545,601.4,599.47,0.30606396]
[1745536755054,1.27175545,601.4,599.48,0.30606396]
[1745536755356,1.27175545,601.4,599.47,0.30606396]
[1745536755557,0.28994322,601.39,599.48,0.30606396]
[1745536755752,0.28994322,601.39,599.47,0.30606396]
[1745536756757,0.28994322,601.39,599.48,0.3060638]
[1745536756958,1.27175545,601.17,599.58,1.06177602]
[1745536757154,1.27175545,601.17,599.59,0.3060638]
[1745536757351,1.27175545,601.17,599.58,1.06177602]
[1745536757557,0.28995651,601.16,599.58,1.06177602]
[1745536759357,0.28995651,601.16,599.48,0.28995651]
[1745536759558,0.28995651,601.16,599.49,0.30607146]
[1745536759858,0.28995651,601.16,599.48,0.28995651]
[1745536760052,0.28995651,601.16,599.49,0.30607146]
[1745536760255,1.27175545,601.61,599.49,0.30607146]
[1745536760457,1.27175545,601.61,599.42,0.30607146]
[1745536760755,1.27175545,601.61,599.43,0.30607146]
[1745536761060,1.27175545,601.61,599.44,0.30607146]
[1745536761260,1.27175545,601.61,599.42,0.30607146]
[1745536761559,0.28992389,601.6,599.45,1.54392389]
[1745536761858,0.28992389,601.6,599.46,0.30607146]
[1745536763059,0.28992389,601.6,599.45,1.54392389]
[1745536763252,1.27175545,601.61,599.46,0.30607654]
[1745536764462,0.28991906,601.6,599.46,0.30607654]
[1745536764663,0.28991906,601.6,599.45,1.54391906]
[1745536764856,0.28991906,601.6,599.46,0.30606589]
[1745536765263,1.56167451,601.6,599.46,0.30606589]
[1745536766262,1.27175545,601.6,599.46,0.30606589]
[1745536767461,0.28992027,601.59,599.46,0.30606589]
[1745536767963,0.28992027,601.59,599.47,0.30606392]
[1745536768161,0.28992027,601.59,599.48,0.30606392]
[1745536768364,0.28992027,601.59,599.46,0.30606392]
[1745536768562,0.28992027,601.59,599.47,0.30606392]
[1745536768760,0.28992027,601.59,599.48,0.30606392]
[1745536768964,0.28992027,601.59,599.46,0.30606392]
[1745536769162,0.28992027,601.59,599.47,0.30606392]
[1745536769366,1.27175545,601.65,599.46,0.30606392]
[1745536770464,0.28991423,601.64,599.46,0.30606392]
[1745536771570,1.27175545,601.37,599.5,1.06177602]
[1745536771763,1.27175545,601.37,599.51,0.30606392]
[1745536773468,0.28994201,601.36,599.51,0.30606392]
[1745536774171,0.28994201,601.36,599.52,0.957]
[1745536775265,1.27175545,601.72,599.52,0.957]
[1745536776371,1.27175545,601.72,599.53,0.3060525]
[1745536776667,0.28989733,601.71,599.53,0.3060525]
[1745536777371,1.56165278,601.71,599.53,0.3060525]
[1745536777572,1.56165278,601.71,599.54,0.30605222]
[1745536777772,1.56165278,601.71,599.53,0.30605222]
[1745536777969,1.56165278,601.71,599.54,0.30605222]
[1745536778168,1.56165278,601.71,599.53,0.30605222]
[1745536778368,1.27175545,601.71,599.53,0.30605222]
[1745536779074,1.27175545,601.71,599.52,0.957]
[1745536779273,1.27175545,601.71,599.53,0.30605201]
[1745536779476,0.28989854,601.7,599.53,0.30605201]
[1745536780675,0.28989854,601.7,599.52,0.957]
[1745536780876,0.28989854,601.7,599.53,0.30605222]
[1745536781077,0.28989854,601.7,599.52,0.957]
[1745536781277,1.27175545,601.61,599.53,0.30605222]
[1745536783880,1.27175545,601.61,599.52,0.957]
[1745536784074,1.27175545,601.61,599.53,1.48505216]
[1745536784275,1.27175545,601.26,599.57,1.06177602]
[1745536784477,1.27175545,601.26,599.58,0.30605216]
[1745536785476,0.28994684,601.25,599.57,1.06177602]
[1745536785681,0.28994684,601.25,599.58,0.30605194]
[1745536786577,1.27175545,601.23,599.59,2.36877602]
[1745536786785,1.27175545,601.23,599.6,0.30605194]
[1745536787077,1.27175545,601.23,599.59,2.36877602]
[1745536787283,1.27175545,601.23,599.6,0.30605216]
[1745536787882,1.27175545,601.23,599.61,1.105]
[1745536788178,1.27175545,601.23,599.62,0.30605216]
[1745536788378,1.27175545,601.33,599.62,0.30605216]
[1745536788582,0.28994564,601.22,599.62,0.30605216]
[1745536788780,1.27175545,601.33,599.62,0.30605216]
[1745536790284,1.27175545,601.33,599.61,1.105]
[1745536790481,0.28993356,601.32,599.62,0.30605671]
[1745536790785,1.27175545,601.29,599.62,0.30605671]
[1745536793486,1.27175545,601.29,599.61,1.105]
[1745536793685,1.27175545,601.29,599.62,0.30605523]
[1745536793887,1.27175545,601.28,599.62,0.30605523]
[1745536794088,1.27175545,601.28,599.63,0.30605543]
[1745536794383,1.27175545,601.28,599.64,0.30605543]
[1745536794589,0.2899396,601.27,599.62,0.30605543]
[1745536796292,1.27175545,601.28,599.62,0.30605543]
[1745536796893,1.27175545,601.23,599.63,1.396]
[1745536797389,1.27175545,601.23,599.64,0.30605533]
[1745536797587,0.28994322,601.22,599.64,0.30605533]
[1745536799297,1.27175545,601.23,599.64,0.30605533]
[1745536799696,1.27175545,601.11,599.64,1.36783135]
[1745536799892,1.27175545,601.11,599.65,0.30605533]
[1745536800498,0.28995651,601.1,599.65,0.30605533]
[1745536801499,1.27175545,601.11,599.64,1.06177602]
[1745536801701,1.27175545,601.11,599.65,0.30605472]
[1745536801994,0.28995651,601.1,599.65,0.30605472]
[1745536802198,1.27175545,601.09,599.66,1.06177602]
[1745536802395,1.27175545,601.09,599.67,0.30605505]
[1745536802999,0.28995651,601.08,599.67,0.30605505]
[1745536803504,0.28995651,601.08,599.68,0.30605492]
[1745536803798,0.28995651,601.08,599.69,0.30605492]
[1745536803995,0.28995651,601.08,599.67,0.30605492]
[1745536804300,0.28995651,601.08,599.68,0.30605492]
[1745536804595,0.28995651,601.08,599.69,0.30605492]
[1745536804797,0.28995651,601.08,599.7,0.30605492]
[1745536804997,0.28995651,601.08,599.71,0.30605492]
[1745536805192,0.28995651,601.08,599.72,0.30605357]
[1745536805494,1.27175545,601.12,599.73,0.30605357]
[1745536805699,1.27175545,601.12,599.67,0.30605357]
[1745536805898,1.27175545,601.12,599.66,1.034]
[1745536806099,1.27175545,601.12,599.67,0.30605188]
[1745536806501,0.28995288,601.11,599.67,0.30605188]
[1745536806894,0.28995288,601.11,599.68,0.30605216]
[1745536807098,0.28995288,601.11,599.67,0.30605216]
[1745536807296,0.28995288,601.11,599.66,1.034]
[1745536807297,0.28995288,601.11,599.68,0.30605216]
[1745536807501,0.28995288,601.11,599.67,0.30605216]
[1745536807795,0.28995288,601.11,599.68,0.30605216]
[1745536808000,0.28995288,601.11,599.67,0.30605216]
[1745536808196,0.28995288,601.11,599.68,0.30605216]
[1745536808502,1.27175545,601.22,599.69,0.30605216]
[1745536808699,1.27175545,601.22,599.7,0.30605216]
[1745536808900,1.27175545,601.22,599.71,0.30605216]
[1745536809099,1.27175545,601.22,599.66,1.034]
[1745536809296,1.27175545,601.22,599.67,0.30605216]
[1745536809501,0.2899408,601.21,599.67,0.30605216]
[1745536810004,0.2899408,601.21,599.66,1.034]
[1745536810202,0.2899408,601.21,599.67,0.30605243]
[1745536811305,1.27175545,601.29,599.67,0.30605243]
[1745536811507,1.27175545,601.29,599.66,1.034]
[1745536811701,1.27175545,601.29,599.67,0.30605216]
[1745536812407,1.27175545,601.3,599.67,0.30605216]
[1745536812606,0.28993235,601.28,599.67,0.30605216]
[1745536812801,0.28993235,601.28,599.67,1.25605216]
[1745536813008,0.28993235,601.28,599.68,0.30605216]
[1745536814309,1.27175545,601.3,599.68,0.30605216]
[1745536814503,0.28992993,601.27,599.68,0.30605216]
[1745536814707,0.28992993,601.27,599.67,0.95]
[1745536814907,0.28992993,601.27,599.68,0.30605216]
[1745536816303,0.28992993,601.27,599.67,0.95]
[1745536816512,0.28992993,601.27,599.68,0.30605215]
[1745536816909,1.27175545,601.25,599.68,0.30605215]
[1745536818513,0.28993597,601.24,599.68,0.30605215]
[1745536820314,1.27175545,601.25,599.68,0.30605215]
[1745536820511,1.27175545,601.12,599.68,0.30605215]
[1745536821514,0.28995167,601.11,599.68,0.30605215]
[1745536822515,0.28995167,601.11,599.67,0.95]
[1745536822715,0.28995167,601.11,599.68,0.30605215]
[1745536826216,1.27175545,601.21,599.68,1.30505215]
[1745536826417,1.27175545,601.21,599.69,0.30605215]
[1745536827113,1.27175545,601.21,599.68,0.999]
[1745536827317,1.27175545,601.21,599.69,0.30605226]
[1745536827517,0.2899396,601.2,599.69,0.30605226]
[1745536828117,0.2899396,601.2,599.68,0.999]
[1745536829221,1.27175545,601.24,599.68,0.999]
[1745536830220,1.27175545,601.49,599.68,0.999]
[1745536830521,0.28993597,601.23,599.68,0.999]
[1745536830915,1.27175545,601.49,599.68,0.999]
[1745536832116,0.28989129,601.48,599.68,0.999]
[1745536833419,1.27175545,601.47,599.68,0.999]
[1745536834720,1.27175545,601.47,599.68,2.189]
[1745536836419,0.28989371,601.46,599.68,2.189]
[1745536837621,0.28989371,601.46,599.68,3.682]
[1745536838127,0.28989371,601.46,599.69,0.30603078]
[1745536838321,1.27175545,601.53,599.69,0.30603078]
[1745536838825,1.27175545,601.53,599.68,3.682]
[1745536839526,0.28987197,601.52,599.68,3.682]
[1745536841224,1.27175545,602.18,599.68,3.682]
[1745536842626,1.56156587,602.17,599.68,3.682]
[1745536844323,1.27175545,602.17,599.68,3.682]
[1745536845129,2.16375059,602.74,599.68,3.682]
[1745536845130,1.27175545,602.13,599.68,3.682]
[1745536846929,1.27175545,602.13,599.68,2.492]
[1745536847430,1.27175545,602.11,599.68,2.492]
[1745536848531,0.28981886,602.1,599.68,2.492]
[1745536850433,1.27175545,602.11,599.68,2.492]
[1745536850734,1.27175545,602.0,599.68,2.492]
[1745536851534,0.289843,601.99,599.68,2.492]
[1745536853236,1.27175545,602.0,599.68,2.492]
[1745536853832,2.16375059,603.02,599.68,2.492]
[1745536853833,1.27175545,601.98,599.68,2.492]
[1745536854541,0.28984662,601.97,599.68,2.492]
[1745536856241,1.27175545,601.98,599.68,1.493]
[1745536856741,1.27175545,601.93,599.68,1.493]
[1745536857536,0.28985266,601.92,599.68,1.493]
[1745536859245,1.27175545,601.83,599.68,1.493]
[1745536860547,0.28986473,601.82,599.68,1.493]
[1745536862249,1.27175545,601.83,599.68,1.493]
[1745536862549,1.27175545,601.69,599.68,1.493]
[1745536863648,0.28988163,601.68,599.68,1.493]
[1745536865450,1.56163708,601.68,599.68,1.493]
[1745536868250,1.27175545,601.68,599.68,1.493]
[1745536868650,1.27175545,602.0,599.68,1.493]
[1745536869451,0.28983214,601.99,599.68,1.493]
[1745536871851,1.27003722,602.01,599.68,3.006]
[1745536872452,0.28983093,602.0,599.68,3.006]
[1745536874253,1.27003722,602.01,599.68,3.006]
[1745536875553,0.28983093,602.0,599.68,3.006]
[1745536875749,0.28983093,602.0,599.69,0.30604295]
[1745536878154,1.27003722,601.39,599.69,0.30604295]
[1745536879655,1.27003722,601.39,599.68,3.006]
[1745536880856,1.27003722,601.39,599.68,1.513]
[1745536881653,0.28990578,601.38,599.68,1.513]
[1745536883254,1.27003722,601.39,599.68,1.513]
[1745536883561,0.28990578,601.37,599.68,1.513]
[1745536886260,1.27003722,601.55,599.68,1.513]
[1745536886561,0.28988646,601.36,599.68,1.513]
[1745536886958,1.27003722,601.6,599.68,1.513]
[1745536887557,0.28988042,601.59,599.68,1.513]
[1745536889364,1.27003722,601.6,599.68,1.513]
[1745536889563,1.27003722,601.6,599.69,0.3060313]
[1745536890365,1.27003722,601.6,599.68,2.99]
[1745536890565,0.28988042,601.59,599.69,0.30602783]
[1745536891066,0.28988042,601.59,599.7,1.288]
[1745536891265,0.28988042,601.59,599.71,0.30602783]
[1745536892266,1.27003722,601.33,599.71,0.30602783]
[1745536893065,1.27003722,601.33,599.7,1.288]
[1745536893567,0.28990337,601.32,599.7,1.288]
[1745536895268,1.27003722,601.64,599.7,1.288]
[1745536896468,1.27003722,601.64,599.71,0.30599693]
[1745536896662,0.28985628,601.63,599.71,0.30599693]
[1745536898266,1.27003722,601.65,599.71,0.30599693]
[1745536899567,0.28984783,601.64,599.71,0.30599693]
[1745536900168,0.28984783,601.64,599.7,1.288]
[1745536902970,0.28984783,601.64,599.71,0.30597584]
[1745536903269,0.28984783,601.64,599.72,0.30597556]
[1745536903469,0.28984783,601.64,599.71,0.30597556]
[1745536903671,0.28984783,601.64,599.72,0.30597556]
[1745536903869,0.28984783,601.64,599.71,0.30597556]
[1745536904271,1.27003722,601.87,599.71,0.30597556]
[1745536904673,0.28981162,601.63,599.71,0.30597556]
[1745536904871,1.27003722,601.87,599.71,0.30597556]
[1745536905373,1.27003722,601.77,599.71,0.30597556]
[1745536906571,1.27003722,601.77,599.7,1.288]
[1745536906771,0.28982369,601.76,599.7,1.288]
[1745536907171,0.28982369,601.76,599.71,1.056]
[1745536907871,0.28982369,601.76,599.72,0.30596568]
[1745536908472,0.28982369,601.76,599.71,1.056]
[1745536908670,0.28982369,601.76,599.72,0.30597089]
[1745536908870,0.28982369,601.76,599.71,1.056]
[1745536909872,0.28982369,601.76,599.72,0.30597379]
[1745536910274,1.27003722,601.89,599.72,0.30597379]
[1745536911074,1.27003722,601.89,599.71,1.056]
[1745536911272,1.27003722,601.89,599.72,0.30597558]
[1745536911569,0.289808,601.88,599.72,0.30597558]
[1745536912377,1.27003722,601.8,599.71,1.056]
[1745536914576,0.28981886,601.79,599.71,1.056]
[1745536915976,0.28981886,601.79,599.72,1.247]
[1745536916278,1.27003722,601.94,599.72,1.247]
[1745536916574,0.28980076,601.78,599.73,0.30597486]
[1745536917077,1.27003722,601.94,599.73,0.30597486]
[1745536917575,0.28980076,601.93,599.72,1.247]
[1745536917778,0.28980076,601.93,599.73,0.30597432]
[1745536918174,1.27003722,601.82,599.73,0.30597432]
[1745536920581,0.28981524,601.81,599.73,0.30597432]
[1745536921375,1.55985246,601.81,599.73,0.30597432]
[1745536921881,1.55985246,601.81,599.72,1.247]
[1745536922084,1.55985246,601.81,599.73,0.30597318]
[1745536922282,1.27003722,601.81,599.73,0.30597318]
[1745536923485,1.27003722,601.81,599.72,1.247]
[1745536923684,0.28981645,601.8,599.73,0.3059729]
[1745536923890,1.27003722,601.61,599.73,0.3059729]
[1745536924184,1.27003722,601.61,599.74,1.001]
[1745536924486,1.27003722,601.61,599.75,0.3059729]
[1745536925084,1.27003722,601.61,599.74,1.001]
[1745536925285,1.27003722,601.61,599.75,0.30597126]
[1745536926581,0.28983817,601.6,599.75,0.30597126]
[1745536926785,0.28983817,601.6,599.76,0.30597059]
[1745536926984,0.28983817,601.6,599.75,0.30597059]
[1745536927184,0.28983817,601.6,599.76,0.30597059]
[1745536927485,1.27003722,601.58,599.77,0.30597059]
[1745536927683,1.27003722,601.58,599.75,0.30597059]
[1745536927884,1.27003722,601.58,599.76,0.30597059]
[1745536928084,1.27003722,601.58,599.75,0.30597059]
[1745536929585,0.28984179,601.57,599.75,0.30597059]
[1745536930583,1.27003722,601.47,599.75,0.30597059]
[1745536932590,0.28985507,601.46,599.75,0.30597059]
[1745536933395,1.27003722,601.27,599.79,1.06051272]
[1745536933593,1.27003722,601.27,599.8,0.30597059]
[1745536934689,1.27003722,601.27,599.81,0.30597027]
[1745536934894,1.27003722,601.27,599.8,0.30597027]
[1745536935095,1.27003722,601.27,599.81,0.30597027]
[1745536935390,1.27003722,601.27,599.82,0.30597027]
[1745536935694,0.28987318,601.26,599.83,0.30597027]
[1745536935895,1.27003722,601.19,599.85,1.06051272]
[1745536936395,1.27003722,601.19,599.86,0.30597027]
[1745536936998,1.27003722,601.19,599.87,1.487]
[1745536937188,1.27003722,601.19,599.88,0.30597027]
[1745536939195,1.27003722,601.15,599.88,0.30597027]
[1745536939596,1.27003722,601.15,599.89,1.169]
[1745536939894,1.27003722,601.15,599.9,0.30597027]
[1745536940495,1.27003722,601.15,599.9,1.499]
[1745536941591,0.2898925,601.14,599.9,1.499]
[1745536943296,1.27003722,601.19,599.9,1.499]
[1745536943596,0.28988888,601.13,599.9,1.499]
[1745536946598,0.28988888,601.13,599.9,2.443]
[1745536949302,1.27003722,601.93,599.9,2.443]
[1745536949503,1.27003722,602.15,599.9,2.443]
[1745536950607,0.28976577,602.14,599.9,2.443]
[1745536952309,1.27003722,602.42,599.9,2.443]
[1745536952603,0.2897332,602.13,599.9,2.443]
[1745536952908,1.27003722,602.42,599.9,2.443]
[1745536953205,1.27003722,602.42,599.9,3.653]
[1745536953609,0.2897332,602.41,599.9,3.653]
[1745536954209,1.27003722,602.31,599.9,3.653]
[1745536956605,0.28974647,602.3,599.9,3.653]
[1745536956805,1.27003722,602.22,599.9,3.653]
[1745536959411,1.27003722,602.14,599.9,3.653]
[1745536962212,1.27003722,601.65,599.9,3.653]
[1745536962611,0.2898261,601.64,599.9,3.653]
[1745536964315,1.27003722,601.65,599.9,3.653]
[1745536965315,1.27003722,601.65,599.9,4.974]
[1745536965617,0.2898261,601.64,599.91,0.3059566]
[1745536965916,0.2898261,601.64,599.9,4.974]
[1745536967318,1.27003722,601.65,599.9,4.974]
[1745536967620,0.2898261,601.63,599.9,4.974]
[1745536968323,1.27003722,601.51,599.9,4.974]
[1745536968524,1.27003722,601.51,599.9,4.96048408]
[1745536968820,1.27003722,601.51,599.9,3.475]
[1745536969421,1.26477322,601.51,599.9,3.475]
[1745536971623,2.16082721,601.62,599.9,3.475]
[1745536974317,2.16082721,601.68,599.9,3.475]
[1745536974622,0.28981766,601.61,599.9,3.475]
[1745536976323,2.16082721,601.68,599.9,3.475]
[1745536977622,0.28981042,601.67,599.9,3.475]
[1745536979330,2.16082721,601.71,599.9,3.475]
[1745536980626,0.2898068,601.7,599.9,3.475]
[1745536981634,2.16082721,601.69,599.9,3.475]
[1745536982730,0.28980921,601.68,599.9,3.475]
[1745536983529,0.28980921,601.68,599.91,0.305953]
[1745536984127,0.28980921,601.68,599.71,1.06051272]
[1745536984331,0.28980921,601.68,599.72,0.30595134]
[1745536984635,0.28980921,601.68,599.74,1.06051272]
[1745536984636,2.16082721,601.65,599.74,1.06051272]
[1745536984830,2.16082721,601.65,599.75,0.30595134]
[1745536986535,0.28983335,601.64,599.76,1.487]
[1745536986835,0.28983335,601.64,599.77,0.30595134]
[1745536987036,0.28983335,601.64,599.77,1.60495134]
[1745536987235,0.28983335,601.64,599.78,0.30595134]
[1745536987634,2.16082721,601.59,599.78,0.30595134]
[1745536988535,2.16082721,601.59,599.77,2.573]
[1745536989538,0.28985628,601.58,599.77,2.573]
[1745536990037,2.16082721,601.56,599.77,2.573]
[1745536991836,0.2898599,601.55,599.77,2.573]
[1745536994338,2.16082721,602.25,599.77,2.573]
[1745536995634,0.2897887,602.24,599.77,2.573]
[1745536997340,2.16082721,602.4,599.77,2.573]
[1745536997736,0.2897706,602.23,599.77,2.573]
[1745536997944,2.16082721,602.4,599.77,2.573]
[1745536998645,0.2897706,602.39,599.77,2.573]
[1745537000045,1.26885938,602.37,599.77,2.573]
[1745537000640,0.28977422,602.36,599.77,2.573]
[1745537002346,1.26885938,602.31,599.77,2.573]
[1745537003945,1.26885938,602.31,599.77,4.119]
[1745537004550,0.28977784,602.3,599.77,4.119]
[1745537004947,1.26885938,602.11,599.77,4.119]
[1745537007350,1.26885938,602.1,599.77,4.119]
[1745537007550,1.55864808,602.1,599.77,4.119]
[1745537010653,1.26885938,601.73,599.77,4.119]
[1745537012655,0.28983455,601.72,599.77,4.119]
[1745537013657,1.26885938,601.65,599.77,4.119]
[1745537021358,1.26885938,601.83,599.77,4.119]
[1745537022557,0.28982248,601.82,599.77,4.119]
[1745537022963,1.26885938,601.8,599.77,4.119]
[1745537025366,1.26885938,601.79,599.78,0.30599321]
[1745537025866,1.55868548,601.79,599.78,0.30599321]
[1745537026364,1.55868548,601.79,599.59,0.30599376]
[1745537027369,1.26885938,601.79,599.59,0.30599376]
[1745537027567,1.26885938,601.79,599.49,0.30599376]
[1745537028269,1.26885938,601.54,599.6,1.06051272]
[1745537028569,1.26885938,601.54,599.61,0.30599376]
[1745537030669,1.26885938,601.89,599.61,0.30599376]
[1745537030871,1.26885938,601.89,599.62,0.30599376]
[1745537031065,1.26885938,601.89,599.5,0.30599376]
[1745537031265,1.26885938,601.89,599.51,0.30599376]
[1745537031466,1.26885938,601.89,599.5,0.30599376]
[1745537031667,0.28984904,601.88,599.51,0.30599376]
[1745537032971,0.28984904,601.88,599.5,0.28984904]
[1745537033169,1.26885938,601.84,599.52,1.06051272]
[1745537033368,1.26885938,601.84,599.53,0.30597497]
[1745537035974,0.28984904,601.88,599.53,0.30597497]
[1745537036173,0.28984904,601.88,599.51,0.30597497]
[1745537036374,1.26885938,602.02,599.52,0.30597497]
[1745537036575,1.26885938,602.02,599.44,0.30597497]
[1745537036775,1.26885938,602.02,599.45,0.30597497]
[1745537036969,1.26885938,602.02,599.44,0.30597497]
[1745537037275,1.26885938,602.02,599.45,0.30597497]
[1745537037476,1.26885938,602.02,599.44,0.30597497]
[1745537037676,0.28984059,602.01,599.45,0.59581556]
[1745537037869,0.28984059,602.01,599.46,0.30597497]
[1745537038070,0.28984059,602.01,599.47,0.30597245]
[1745537038274,0.28984059,602.01,599.46,0.30597245]
[1745537038570,0.28984059,602.01,599.47,0.30597245]
[1745537038775,0.28984059,602.01,599.46,0.30597245]
[1745537038973,1.26885938,602.0,599.47,0.30597245]
[1745537039169,1.26885938,602.0,599.46,0.30597245]
[1745537039476,1.26885938,602.0,599.47,0.30597245]
[1745537039669,1.26885938,602.0,599.46,0.30597245]